fUST/lending_fUST_20240728
["ID","MTS","AMOUNT","RATE_DAILY","PERIOD"]
[333458611,1722147502947,200.0,0.0001,2]
[333458612,1722147552258,690.23572383,0.0001,2]
[333458613,1722147554605,1655.02618168,0.0001,2]
[333458614,1722147572435,200.0,0.0001,2]
[333458615,1722147574426,664.52290182,9.999e-05,2]
[333458616,1722147596638,493.93714557,9.999e-05,2]
[333458617,1722147619004,312.10676248,9.999e-05,2]
[333458618,1722147634004,180.57915164,9.999e-05,2]
[333458619,1722147651493,200.0,0.0001,2]
[333458620,1722147686676,586.81509176,9.999e-05,2]
[333458621,1722147714691,154.94597102,9.999e-05,2]
[333458622,1722147716154,200.0,0.0001,2]
[333458623,1722147782616,200.0,0.0001,2]
[333458624,1722147806394,187.70142551,9.999e-05,2]
[333458625,1722147853100,200.0,0.0001,2]
[333458626,1722147907099,273.37336231,9.9e-05,2]
[333458627,1722147907539,528.63357653,9.999e-05,2]
[333458628,1722147928596,200.0,0.0001,2]
[333458629,1722147951834,205.27920889,9.999e-05,2]
[333458630,1722147957463,196.52168329,9.999e-05,2]
[333458631,1722147957831,154.66746495,9.999e-05,2]
[333458632,1722147958238,601.16401781,9.999e-05,2]
[333458633,1722147958343,305.78163583,9.999e-05,2]
[333458634,1722147962390,850.04414428,9.999e-05,2]
[333458635,1722147963259,569.79611651,9.999e-05,2]
[333458636,1722147963310,249.21958783,9.999e-05,2]
[333458637,1722147965173,403.92022491,9.999e-05,2]
[333458638,1722147965631,404.51278902,9.999e-05,2]
[333458639,1722147969247,232.37072834,0.0001,2]
[333458640,1722147972002,224.05123896,9.999e-05,2]
[333458641,1722147974479,526.43265985,9.999e-05,2]
[333458642,1722147975137,322.45540982,9.999e-05,2]
[333458643,1722147975803,780.21536415,9.999e-05,2]
[333458644,1722147977018,1055.10904973,9.999e-05,2]
[333458645,1722147980279,244.70182161,9.999e-05,2]
[333458646,1722147985576,155.72805312,9.999e-05,2]
[333458647,1722147987259,544.21012066,9.999e-05,2]
[333458648,1722147987824,154.66746495,9.999e-05,2]
[333458649,1722147993389,200.0,0.0001,2]
[333458650,1722147995666,414.74590307,9.999e-05,2]
[333458651,1722147997039,459.37749334,9.999e-05,2]
[333458652,1722147999166,240.65823686,9.999e-05,2]
[333458653,1722147999213,287.60472243,0.0001,2]
[333458654,1722148000481,188.12148987,9.999e-05,2]
[333458655,1722148001030,154.66746495,9.999e-05,2]
[333458656,1722148001926,157.01276105,9.999e-05,2]
[333458657,1722148002017,163.25883785,9.999e-05,2]
[333458658,1722148002370,155.2035076,9.999e-05,2]
[333458659,1722148005911,208.64474095,9.999e-05,2]
[333458660,1722148013132,248.40320812,9.999e-05,2]
[333458661,1722148015179,155.21098676,9.999e-05,2]
[333458662,1722148016205,210.3160925,9.999e-05,2]
[333458663,1722148019373,160.25326411,9.999e-05,2]
[333458664,1722148020309,154.83875651,9.999e-05,2]
[333458665,1722148027104,-184.37320566,0.00010959,2]
[333458666,1722148033146,-173.71679434,0.00010959,2]
[333458667,1722148033170,-76.28320566,0.00011291,2]
[333458668,1722148036458,-93.13020934,0.00011291,2]
[333458669,1722148036482,-400.0,0.0001137,2]
[333458670,1722148036505,-2285.97979066,0.0001188,2]
[333458671,1722148041139,282.05564926,0.0001,2]
[333458672,1722148042946,-5458.81394354,0.0001188,2]
[333458673,1722148042968,-488.33858215,0.00011911,2]
[333458674,1722148051145,154.66746495,9.999e-05,2]
[333458675,1722148058670,288.73024545,9.999e-05,2]
[333458676,1722148072232,200.0,0.0001,2]
[333458677,1722148081477,188.12148987,9.999e-05,2]
[333458678,1722148081977,222.32778166,9.999e-05,2]
[333458679,1722148084604,404.82767809,9.999e-05,2]
[333458680,1722148086544,224.07225922,9.999e-05,2]
[333458681,1722148087037,273.37336231,9.9e-05,2]
[333458682,1722148091154,240.65823686,9.999e-05,2]
[333458683,1722148093975,162.62484083,9.999e-05,2]
[333458684,1722148095566,273.37336231,9.9e-05,2]
[333458685,1722148103663,273.37336231,9.9e-05,2]
[333458686,1722148104353,287.60472243,0.0001,2]
[333458687,1722148112196,273.37336231,9.9e-05,2]
[333458688,1722148113781,287.60472243,0.0001,2]
[333458689,1722148116926,208.64474095,9.999e-05,2]
[333458690,1722148120483,273.37336231,9.9e-05,2]
[333458693,1722148133118,200.0,0.0001,2]
[333458694,1722148134571,248.10858539,9.999e-05,2]
[333458695,1722148145301,-400.0,0.0001137,2]
[333458696,1722148145323,-243.2643882,0.00011548,2]
[333458697,1722148145346,-402.4521228,0.00011569,2]
[333458698,1722148156618,154.9057976,9.999e-05,2]
[333458699,1722148163152,-7714.9547193,0.00011569,2]
[333458700,1722148163175,-161.670243,0.00011986,2]
[333458701,1722148163198,-161.670243,0.00012019,2]
[333458702,1722148163221,-161.670243,0.00012051,2]
[333458703,1722148163243,-161.670243,0.00012084,2]
[333458704,1722148163265,-300.0,0.00012116,2]
[333458705,1722148163286,-161.670243,0.00012117,2]
[333458706,1722148163306,-1057.58965203,0.0001212,2]
[333458707,1722148163327,-167.46256174,0.0001212,2]
[333458708,1722148163347,-243.51848626,0.0001212,2]
[333458709,1722148163368,-161.670243,0.0001215,2]
[333458710,1722148163390,-161.670243,0.00012183,2]
[333458711,1722148163412,-161.670243,0.00012216,2]
[333458712,1722148163434,-161.670243,0.00012249,2]
[333458713,1722148163456,-161.670243,0.00012282,2]
[333458714,1722148163478,-150.70910845,0.00012315,2]
[333458715,1722148170281,-10.96113455,0.00012315,2]
[333458716,1722148170304,-161.670243,0.00012347,2]
[333458717,1722148170327,-161.670243,0.0001238,2]
[333458718,1722148170348,-161.670243,0.00012413,2]
[333458719,1722148170370,-161.670243,0.00012446,2]
[333458720,1722148170392,-161.670243,0.00012479,2]
[333458721,1722148170413,-161.670243,0.00012512,2]
[333458722,1722148170434,-161.670243,0.00012545,2]
[333458723,1722148170455,-161.670243,0.00012578,2]
[333458724,1722148170476,-114.77692145,0.0001261,2]
[333458725,1722148224969,208.77414511,9.999e-05,2]
[333458773,1722148232579,-46.89332155,0.0001261,2]
[333458774,1722148232590,-169.413415,0.0001283,2]
[333458775,1722148232601,-399.14395828,0.000132,2]
[333458776,1722148232610,-174.415444,0.00013425,2]
[333458778,1722148232620,-1006.86436452,0.0001359,2]
[333458780,1722148232630,-324.97904296,0.00013655,2]
[333458782,1722148232639,-300.0,0.00013689,2]
[333458786,1722148232650,-500.0,0.0001369,2]
[333458788,1722148232660,-500.0,0.0001369,2]
[333458791,1722148232671,-500.0,0.0001369,2]
[333458794,1722148232681,-500.0,0.0001369,2]
[333458796,1722148232691,-500.0,0.0001369,2]
[333458798,1722148232702,-500.0,0.0001369,2]
[333458800,1722148232712,-500.0,0.0001369,2]
[333458802,1722148232721,-500.0,0.0001369,2]
[333458804,1722148232730,-283.45,0.0001369,2]
[333458806,1722148232740,-500.0,0.0001369,2]
[333458808,1722148232749,-500.0,0.0001369,2]
[333458810,1722148232759,-500.0,0.0001369,2]
[333458811,1722148232769,-500.0,0.0001369,2]
[333458813,1722148232778,-500.0,0.0001369,2]
[333458815,1722148232788,-500.0,0.0001369,2]
[333458817,1722148232797,-500.0,0.0001369,2]
[333458819,1722148232806,-500.0,0.0001369,2]
[333458821,1722148232815,-181.45,0.0001369,2]
[333458823,1722148232824,-500.0,0.0001369,2]
[333458825,1722148232834,-500.0,0.0001369,2]
[333458827,1722148232843,-500.0,0.0001369,2]
[333458829,1722148232853,-500.0,0.0001369,2]
[333458831,1722148232863,-500.0,0.0001369,2]
[333458833,1722148232875,-500.0,0.0001369,2]
[333458835,1722148232884,-500.0,0.0001369,2]
[333458837,1722148232894,-500.0,0.0001369,2]
[333458840,1722148232905,-500.0,0.0001369,2]
[333458841,1722148232916,-500.0,0.0001369,2]
[333458842,1722148232925,-500.0,0.0001369,2]
[333458843,1722148232934,-500.0,0.0001369,2]
[333458845,1722148232944,-500.0,0.0001369,2]
[333458847,1722148232955,-500.0,0.0001369,2]
[333458849,1722148232965,-500.0,0.0001369,2]
[333458851,1722148232975,-500.0,0.0001369,2]
[333458853,1722148232984,-500.0,0.0001369,2]
[333458855,1722148232993,-500.0,0.0001369,2]
[333458857,1722148233003,-500.0,0.0001369,2]
[333458859,1722148233012,-500.0,0.0001369,2]
[333458861,1722148233022,-500.0,0.0001369,2]
[333458863,1722148233033,-500.0,0.0001369,2]
[333458865,1722148233043,-500.0,0.0001369,2]
[333458867,1722148233052,-500.0,0.0001369,2]
[333458868,1722148233062,-500.0,0.0001369,2]
[333458871,1722148233072,-500.0,0.0001369,2]
[333458872,1722148233082,-500.0,0.0001369,2]
[333458874,1722148233091,-500.0,0.0001369,2]
[333458875,1722148233101,-500.0,0.0001369,2]
[333458877,1722148233111,-500.0,0.0001369,2]
[333458878,1722148233131,-500.0,0.0001369,2]
[333458879,1722148233141,-500.0,0.0001369,2]
[333458880,1722148233165,-500.0,0.0001369,2]
[333458881,1722148233176,-642.7,0.0001369,2]
[333458882,1722148233186,-500.0,0.0001369,2]
[333458883,1722148233197,-500.0,0.00013698,2]
[333458884,1722148233207,-500.0,0.00013698,2]
[333458885,1722148233218,-500.0,0.00013698,2]
[333458886,1722148233227,-500.0,0.00013698,2]
[333458887,1722148233238,-500.0,0.00013698,2]
[333458888,1722148233248,-500.0,0.00013698,2]
[333458889,1722148233258,-512.08886314,0.00013698,2]
[333458890,1722148233268,-500.0,0.00013698,2]
[333458891,1722148233279,-500.0,0.00013698,2]
[333458892,1722148233290,-458.14138183,0.00013698,2]
[333458893,1722148233301,-500.0,0.00013698,2]
[333458894,1722148233311,-500.0,0.00013698,2]
[333458895,1722148233322,-500.0,0.00013698,2]
[333458896,1722148233333,-500.0,0.00013698,2]
[333458897,1722148233345,-500.0,0.00013698,2]
[333458898,1722148233355,-500.0,0.00013698,2]
[333458899,1722148233365,-500.0,0.00013698,2]
[333458900,1722148233375,-500.0,0.00013698,2]
[333458901,1722148233385,-500.0,0.00013698,2]
[333458902,1722148233395,-2478.4,0.00013698,2]
[333458903,1722148233405,-500.0,0.00013698,2]
[333458904,1722148233416,-500.0,0.00013698,2]
[333458905,1722148233426,-500.0,0.00013698,2]
[333458906,1722148233437,-500.0,0.00013698,2]
[333458907,1722148233447,-500.0,0.00013698,2]
[333458908,1722148233457,-500.0,0.00013698,2]
[333458909,1722148233467,-500.0,0.00013698,2]
[333458910,1722148233476,-1064.21,0.00013698,2]
[333458911,1722148233486,-983.1,0.00013698,2]
[333458912,1722148233496,-500.0,0.00013698,2]
[333458913,1722148233506,-500.0,0.00013698,2]
[333458914,1722148233515,-3641.28,0.00013698,2]
[333458915,1722148233526,-500.0,0.00013698,2]
[333458916,1722148233536,-1663.51,0.00013698,2]
[333458917,1722148233545,-500.0,0.00013698,2]
[333458918,1722148233555,-500.0,0.00013698,2]
[333458919,1722148233565,-820.32,0.00013698,2]
[333458920,1722148233575,-551.79,0.00013698,2]
[333458921,1722148233586,-500.0,0.00013698,2]
[333458922,1722148233596,-500.0,0.00013698,2]
[333458923,1722148233605,-500.0,0.00013698,2]
[333458924,1722148233617,-500.0,0.00013698,2]
[333458925,1722148233627,-500.0,0.00013698,2]
[333458926,1722148233638,-500.0,0.00013698,2]
[333458927,1722148233648,-500.0,0.00013698,2]
[333458928,1722148233658,-500.0,0.00013698,2]
[333458929,1722148233668,-500.0,0.00013698,2]
[333458930,1722148233678,-500.0,0.00013698,2]
[333458931,1722148233687,-500.0,0.00013698,2]
[333458932,1722148233697,-211.71927315,0.00013698,2]
[333458933,1722148233706,-566.85980908,0.00013698,2]
[333458934,1722148233716,-500.0,0.00013698,2]
[333458935,1722148233727,-500.0,0.00013698,2]
[333458936,1722148233737,-500.0,0.00013698,2]
[333458937,1722148233747,-1111.68,0.00013698,2]
[333458938,1722148233757,-500.0,0.00013698,2]
[333458939,1722148233766,-500.0,0.00013698,2]
[333458940,1722148233775,-500.0,0.00013698,2]
[333458941,1722148233785,-500.0,0.00013698,2]
[333458942,1722148233794,-2272.75,0.00013698,2]
[333458943,1722148233804,-500.0,0.00013698,2]
[333458944,1722148233814,-3414.14,0.00013698,2]
[333458945,1722148233824,-500.0,0.00013698,2]
[333458946,1722148233835,-500.0,0.00013698,2]
[333458947,1722148233845,-500.0,0.00013698,2]
[333458948,1722148233856,-500.0,0.00013698,2]
[333458949,1722148233866,-500.0,0.00013698,2]
[333458950,1722148233880,-500.0,0.00013698,2]
[333458951,1722148233890,-565.43,0.00013698,2]
[333458952,1722148233899,-500.0,0.00013698,2]
[333458953,1722148233909,-495.9955327,0.00013698,2]
[333458954,1722148233920,-500.0,0.00013698,2]
[333458955,1722148233930,-500.0,0.00013698,2]
[333458956,1722148233941,-500.0,0.00013698,2]
[333458957,1722148233950,-784.49,0.00013698,2]
[333458958,1722148233961,-500.0,0.00013698,2]
[333458959,1722148233970,-500.0,0.00013698,2]
[333458960,1722148233980,-500.0,0.00013698,2]
[333458961,1722148233994,-1210.8,0.00013698,2]
[333458962,1722148234004,-500.0,0.00013698,2]
[333458963,1722148234014,-500.0,0.00013698,2]
[333458964,1722148234025,-1098.11,0.00013698,2]
[333458965,1722148234035,-500.0,0.00013698,2]
[333458966,1722148234044,-736.9,0.00013698,2]
[333458967,1722148234054,-874.85,0.00013698,2]
[333458968,1722148234064,-500.0,0.00013698,2]
[333458969,1722148234074,-500.0,0.00013698,2]
[333458970,1722148234083,-508.68,0.00013698,2]
[333458971,1722148234093,-181.22414534,0.00013733,2]
[333458972,1722148234267,-186.31515961,0.00013733,2]
[333458973,1722148234277,-313.68484039,0.00013781,2]
[333459190,1722148239665,-215.38707806,0.00013698,2]
[333459193,1722148239677,-500.0,0.00013698,2]
[333459195,1722148239686,-500.0,0.00013698,2]
[333459197,1722148239696,-500.0,0.00013698,2]
[333459199,1722148239707,-500.0,0.00013698,2]
[333459201,1722148239716,-500.0,0.00013698,2]
[333459203,1722148239726,-500.0,0.00013698,2]
[333459205,1722148239735,-500.0,0.00013698,2]
[333459207,1722148239746,-2375.13,0.00013698,2]
[333459209,1722148239759,-99.70266801,0.00013781,2]
[333459211,1722148239768,-153.0,0.00013781,2]
[333459213,1722148239778,-153.0,0.00013781,2]
[333459215,1722148239789,-153.0,0.00013781,2]
[333459217,1722148239799,-153.0,0.00013781,2]
[333459219,1722148239809,-5308.80312147,0.00013955,2]
[333459221,1722148239819,-500.0,0.00013972,2]
[333459223,1722148239829,-194.46725522,0.00013972,2]
[333459225,1722148239839,-7526.2952353,0.00013972,2]
[333459227,1722148239848,-500.0,0.00013972,2]
[333459229,1722148239859,-500.0,0.00013972,2]
[333459231,1722148239870,-500.0,0.00013972,2]
[333459233,1722148239881,-500.0,0.00013972,2]
[333459235,1722148239891,-500.0,0.00013972,2]
[333459237,1722148239900,-500.0,0.00013972,2]
[333459239,1722148239910,-500.0,0.00013972,2]
[333459241,1722148239921,-500.0,0.00013972,2]
[333459244,1722148239932,-500.0,0.00013972,2]
[333459246,1722148239941,-500.0,0.00013972,2]
[333459248,1722148239951,-500.0,0.00013972,2]
[333459250,1722148239961,-500.0,0.00013972,2]
[333459252,1722148239971,-500.0,0.00013972,2]
[333459254,1722148239980,-500.0,0.00013972,2]
[333459256,1722148239991,-500.0,0.00013972,2]
[333459258,1722148240000,-500.0,0.00013972,2]
[333459260,1722148240010,-539.98022567,0.00013972,2]
[333459262,1722148240019,-500.0,0.00013972,2]
[333459264,1722148240030,-500.0,0.00013972,2]
[333459266,1722148240040,-500.0,0.00013972,2]
[333459268,1722148240051,-500.0,0.00013972,2]
[333459270,1722148240063,-500.0,0.00013972,2]
[333459272,1722148240072,-500.0,0.00013972,2]
[333459275,1722148240083,-983.1,0.00013972,2]
[333459277,1722148240093,-500.0,0.00013972,2]
[333459279,1722148240103,-500.0,0.00013972,2]
[333459281,1722148240113,-3641.28,0.00013972,2]
[333459283,1722148240124,-500.0,0.00013972,2]
[333459285,1722148240134,-1663.51,0.00013972,2]
[333459287,1722148240145,-500.0,0.00013972,2]
[333459289,1722148240155,-500.0,0.00013972,2]
[333459292,1722148240169,-820.32,0.00013972,2]
[333459294,1722148240178,-551.79,0.00013972,2]
[333459296,1722148240187,-500.0,0.00013972,2]
[333459298,1722148240197,-500.0,0.00013972,2]
[333459300,1722148240206,-500.0,0.00013972,2]
[333459302,1722148240216,-500.0,0.00013972,2]
[333459304,1722148240226,-500.0,0.00013972,2]
[333459306,1722148240237,-500.0,0.00013972,2]
[333459308,1722148240247,-500.0,0.00013972,2]
[333459311,1722148240259,-500.0,0.00013972,2]
[333459313,1722148240268,-500.0,0.00013972,2]
[333459315,1722148240279,-500.0,0.00013972,2]
[333459318,1722148240290,-500.0,0.00013972,2]
[333459320,1722148240301,-500.0,0.00013972,2]
[333459322,1722148240312,-1111.68,0.00013972,2]
[333459324,1722148240323,-500.0,0.00013972,2]
[333459326,1722148240335,-500.0,0.00013972,2]
[333459328,1722148240345,-500.0,0.00013972,2]
[333459330,1722148240356,-2272.75,0.00013972,2]
[333459332,1722148240366,-500.0,0.00013972,2]
[333459334,1722148240375,-3414.14,0.00013972,2]
[333459337,1722148240386,-500.0,0.00013972,2]
[333459339,1722148240398,-500.0,0.00013972,2]
[333459341,1722148240407,-500.0,0.00013972,2]
[333459343,1722148240419,-500.0,0.00013972,2]
[333459345,1722148240429,-500.0,0.00013972,2]
[333459347,1722148240441,-565.43,0.00013972,2]
[333459349,1722148240451,-500.0,0.00013972,2]
[333459352,1722148240462,-500.0,0.00013972,2]
[333459354,1722148240471,-784.49,0.00013972,2]
[333459356,1722148240481,-500.0,0.00013972,2]
[333459358,1722148240490,-500.0,0.00013972,2]
[333459360,1722148240500,-500.0,0.00013972,2]
[333459362,1722148240509,-1210.8,0.00013972,2]
[333459364,1722148240518,-500.0,0.00013972,2]
[333459366,1722148240528,-500.0,0.00013972,2]
[333459368,1722148240537,-1098.11,0.00013972,2]
[333459370,1722148240547,-500.0,0.00013972,2]
[333459372,1722148240557,-736.9,0.00013972,2]
[333459374,1722148240566,-874.85,0.00013972,2]
[333459376,1722148240576,-500.0,0.00013972,2]
[333459378,1722148240586,-500.0,0.00013972,2]
[333459380,1722148240595,-508.68,0.00013972,2]
[333459382,1722148240604,-2375.13,0.00013972,2]
[333459384,1722148240613,-1409.0,0.00014014,2]
[333459386,1722148240623,-150.0,0.00014014,2]
[333459388,1722148240632,-189.2308441,0.0001411,2]
[333459390,1722148240642,-500.0,0.00014246,2]
[333459392,1722148240652,-500.0,0.00014246,2]
[333459394,1722148240661,-369.78622825,0.00014246,2]
[333459396,1722148240672,-500.0,0.00014246,2]
[333459399,1722148240682,-500.0,0.00014246,2]
[333459401,1722148240692,-500.0,0.00014246,2]
[333459403,1722148240702,-500.0,0.00014246,2]
[333459405,1722148240711,-500.0,0.00014246,2]
[333459407,1722148240722,-500.0,0.00014246,2]
[333459409,1722148240733,-500.0,0.00014246,2]
[333459411,1722148240745,-500.0,0.00014246,2]
[333459413,1722148240756,-500.0,0.00014246,2]
[333459414,1722148240766,-500.0,0.00014246,2]
[333459415,1722148240776,-500.0,0.00014246,2]
[333459416,1722148240785,-500.0,0.00014246,2]
[333459417,1722148240794,-500.0,0.00014246,2]
[333459418,1722148240803,-500.0,0.00014246,2]
[333459419,1722148240813,-500.0,0.00014246,2]
[333459420,1722148240822,-500.0,0.00014246,2]
[333459431,1722148240960,-500.0,0.00014246,2]
[333459433,1722148240972,-500.0,0.00014246,2]
[333459435,1722148240983,-500.0,0.00014246,2]
[333459437,1722148240994,-500.0,0.00014246,2]
[333459439,1722148241003,-983.1,0.00014246,2]
[333459441,1722148241012,-500.0,0.00014246,2]
[333459443,1722148241022,-500.0,0.00014246,2]
[333459445,1722148241031,-3641.28,0.00014246,2]
[333459447,1722148241041,-500.0,0.00014246,2]
[333459449,1722148241050,-1663.51,0.00014246,2]
[333459451,1722148241059,-500.0,0.00014246,2]
[333459453,1722148241068,-500.0,0.00014246,2]
[333459455,1722148241078,-820.32,0.00014246,2]
[333459457,1722148241087,-551.79,0.00014246,2]
[333459459,1722148241096,-500.0,0.00014246,2]
[333459461,1722148241107,-500.0,0.00014246,2]
[333459463,1722148241117,-500.0,0.00014246,2]
[333459465,1722148241127,-500.0,0.00014246,2]
[333459467,1722148241137,-500.0,0.00014246,2]
[333459468,1722148241147,-500.0,0.00014246,2]
[333459469,1722148241157,-500.0,0.00014246,2]
[333459470,1722148241167,-401.06891704,0.00014246,2]
[333459471,1722148241177,-500.0,0.00014246,2]
[333459472,1722148241186,-500.0,0.00014246,2]
[333459473,1722148241196,-500.0,0.00014246,2]
[333459474,1722148241206,-316.37764043,0.00014246,2]
[333459475,1722148241216,-1111.68,0.00014246,2]
[333459476,1722148241226,-500.0,0.00014246,2]
[333459477,1722148241236,-500.0,0.00014246,2]
[333459478,1722148241246,-500.0,0.00014246,2]
[333459479,1722148241256,-2272.75,0.00014246,2]
[333459480,1722148241266,-151.0,0.00014246,2]
[333459481,1722148241277,-500.0,0.00014246,2]
[333459482,1722148241288,-3414.14,0.00014246,2]
[333459483,1722148241299,-226.311908,0.00014246,2]
[333459484,1722148241308,-500.0,0.00014246,2]
[333459486,1722148241318,-500.0,0.00014246,2]
[333459488,1722148241329,-226.311908,0.00014246,2]
[333459490,1722148241341,-500.0,0.00014246,2]
[333459492,1722148241351,-500.0,0.00014246,2]
[333459494,1722148241362,-500.0,0.00014246,2]
[333459496,1722148241371,-565.43,0.00014246,2]
[333459498,1722148241381,-500.0,0.00014246,2]
[333459500,1722148241391,-500.0,0.00014246,2]
[333459502,1722148241402,-784.49,0.00014246,2]
[333459504,1722148241412,-500.0,0.00014246,2]
[333459506,1722148241422,-500.0,0.00014246,2]
[333459508,1722148241432,-500.0,0.00014246,2]
[333459510,1722148241441,-1210.8,0.00014246,2]
[333459512,1722148241450,-500.0,0.00014246,2]
[333459514,1722148241460,-500.0,0.00014246,2]
[333459516,1722148241469,-1098.11,0.00014246,2]
[333459518,1722148241479,-500.0,0.00014246,2]
[333459520,1722148241489,-736.9,0.00014246,2]
[333459521,1722148241498,-874.85,0.00014246,2]
[333459523,1722148241508,-500.0,0.00014246,2]
[333459525,1722148241518,-500.0,0.00014246,2]
[333459528,1722148241531,-508.68,0.00014246,2]
[333459530,1722148241540,-2375.13,0.00014246,2]
[333459532,1722148241550,-473.837976,0.00014247,2]
[333459534,1722148241560,-712.5,0.00014247,2]
[333459536,1722148241570,-20404.46557382,0.0001442,2]
[333459549,1722148241678,-59980.20853279,0.0001442,2]
[333459551,1722148241694,-8503.32589339,0.0001442,2]
[333459553,1722148241703,-177.122502,0.0001442,2]
[333459555,1722148241712,-151.0,0.0001442,2]
[333459557,1722148241722,-151.8326,0.0001442,2]
[333459559,1722148241731,-151.0,0.0001442,2]
[333459561,1722148241740,-151.0,0.0001442,2]
[333459563,1722148241749,-1155.63749065,0.0001442,2]
[333459565,1722148241758,-151.0,0.0001442,2]
[333459567,1722148241768,-300.993157,0.000145,5]
[333459569,1722148241778,-251.4445541,0.0001452,5]
[333459571,1722148241788,-154.81950151,0.0001452,2]
[333459573,1722148241797,-500.0,0.0001452,2]
[333459575,1722148241806,-500.0,0.0001452,2]
[333459577,1722148241815,-500.0,0.0001452,2]
[333459579,1722148241824,-500.0,0.0001452,2]
[333459581,1722148241833,-500.0,0.0001452,2]
[333459583,1722148241842,-500.0,0.0001452,2]
[333459585,1722148241851,-500.0,0.0001452,2]
[333459587,1722148241860,-500.0,0.0001452,2]
[333459589,1722148241872,-500.0,0.0001452,2]
[333459591,1722148241881,-500.0,0.0001452,2]
[333459593,1722148241891,-500.0,0.0001452,2]
[333459595,1722148241900,-500.0,0.0001452,2]
[333459597,1722148241909,-500.0,0.0001452,2]
[333459599,1722148241920,-500.0,0.0001452,2]
[333459601,1722148241929,-500.0,0.0001452,2]
[333459602,1722148241939,-500.0,0.0001452,2]
[333459603,1722148241949,-500.0,0.0001452,2]
[333459604,1722148241959,-437.84312232,0.0001452,2]
[333459605,1722148241968,-500.0,0.0001452,2]
[333459606,1722148241977,-500.0,0.0001452,2]
[333459607,1722148241986,-155.10583273,0.0001452,2]
[333459608,1722148241996,-500.0,0.0001452,2]
[333459609,1722148242005,-983.1,0.0001452,2]
[333459610,1722148242014,-509.17274358,0.0001452,2]
[333459611,1722148242023,-500.0,0.0001452,2]
[333459612,1722148242032,-3641.28,0.0001452,2]
[333459613,1722148242042,-500.0,0.0001452,2]
[333459614,1722148242052,-1663.51,0.0001452,2]
[333459615,1722148242062,-500.0,0.0001452,2]
[333459616,1722148242071,-500.0,0.0001452,2]
[333459617,1722148242080,-820.32,0.0001452,2]
[333459618,1722148242089,-551.79,0.0001452,2]
[333459619,1722148242099,-500.0,0.0001452,2]
[333459620,1722148242108,-310.91193684,0.0001452,2]
[333459621,1722148242117,-500.0,0.0001452,2]
[333459622,1722148242127,-500.0,0.0001452,2]
[333459623,1722148242136,-402.33627073,0.0001452,2]
[333459682,1722148243705,-293.30560794,0.00013698,2]
[333459788,1722148246679,-726.56439206,0.00013698,2]
[333459790,1722148246688,-498.2034912,0.00013698,2]
[333459792,1722148246698,-500.0,0.00013698,2]
[333459794,1722148246707,-1019.87,0.00013972,2]
[333459796,1722148246717,-500.0,0.00013972,2]
[333459799,1722148246727,-505.0,0.00014014,2]
[333459801,1722148246737,-1019.87,0.00014246,2]
[333459803,1722148246746,-390.96668011,0.00014246,2]
[333459805,1722148246756,-151.0,0.0001442,2]